fUST/lending_fUST_20251031
["ID","MTS","AMOUNT","RATE_DAILY","PERIOD"]
[392722298,1761858651895,-200.0,0.00052876,120]
[392722299,1761858651905,-843.74,0.00052876,3]
[392722300,1761858651914,-500.0,0.00052876,120]
[392722301,1761858651923,-556.59,0.00052876,120]
[392722302,1761858651932,-500.0,0.00052876,120]
[392722303,1761858651940,-500.0,0.00052876,120]
[392722304,1761858651949,-500.0,0.00052876,120]
[392722305,1761858651959,-500.0,0.00052876,120]
[392722306,1761858651968,-500.0,0.00052876,120]
[392722307,1761858651979,-500.0,0.00052876,120]
[392722308,1761858651991,-500.0,0.00052876,120]
[392722309,1761858652000,-500.0,0.00052876,120]
[392722310,1761858652009,-507.99,0.00052876,120]
[392722311,1761858652021,-500.0,0.00052876,120]
[392722312,1761858652031,-504.36,0.00052876,120]
[392722313,1761858652040,-167.97,0.00052876,120]
[392722314,1761858652050,-469.98,0.00052876,120]
[392722315,1761858652062,-500.0,0.00052876,120]
[392722316,1761858652071,-500.0,0.00052876,120]
[392722317,1761858652081,-963.55,0.00052876,120]
[392722318,1761858652091,-500.0,0.00052876,120]
[392722319,1761858652102,-500.0,0.00052876,120]
[392722320,1761858652111,-500.0,0.00052876,120]
[392722321,1761858652121,-153.56,0.00052876,120]
[392722322,1761858652131,-500.0,0.00052876,120]
[392722323,1761858652140,-384.03,0.00052876,120]
[392722324,1761858652150,-500.0,0.00052876,120]
[392722325,1761858652159,-1000.0,0.00052921,7]
[392722326,1761858652170,-500.0,0.00052921,10]
[392722327,1761858652181,-1000.0,0.00052921,10]
[392722328,1761858652191,-638.07008123,0.00052921,10]
[392722329,1761858652202,-570.91427546,0.00052921,10]
[392722330,1761858652211,-1001.10948088,0.00052921,10]
[392722331,1761858652220,-554.38715842,0.00052921,10]
[392722332,1761858652230,-1000.0,0.00052921,10]
[392722333,1761858652239,-1500.0,0.00053,120]
[392722334,1761858652248,-1000.0,0.00053068,10]
[392722335,1761858652257,-500.0,0.0005315,2]
[392722336,1761858652266,-178.0,0.0005315,120]
[392722337,1761858652275,-500.0,0.0005315,120]
[392722338,1761858652284,-688.03,0.0005315,120]
[392722339,1761858652293,-380.38,0.0005315,120]
[392722340,1761858652302,-500.0,0.0005315,120]
[392722341,1761858652312,-562.72,0.0005315,120]
[392722342,1761858652321,-500.0,0.0005315,120]
[392722343,1761858652331,-500.0,0.0005315,120]
[392722344,1761858652340,-500.0,0.0005315,120]
[392722345,1761858652349,-500.0,0.0005315,120]
[392722346,1761858652358,-500.0,0.0005315,120]
[392722347,1761858652368,-500.0,0.0005315,120]
[392722348,1761858652379,-500.0,0.0005315,120]
[392722349,1761858652390,-492.85,0.0005315,120]
[392722350,1761858652400,-239.23,0.0005315,120]
[392722351,1761858652410,-200.0,0.0005315,120]
[392722352,1761858652419,-843.74,0.0005315,3]
[392722353,1761858652428,-500.0,0.0005315,120]
[392722354,1761858652436,-459.21981823,0.0005315,120]
[392722356,1761858700122,-150.0,0.00041169,2]
[392722360,1761858715402,-150.0,0.00044911,2]
[392722361,1761858737897,150.0,0.00038833,2]
[392722362,1761858738321,150.0,0.00042363,2]
[392722363,1761858738722,150.0,0.00045894,2]
[392722364,1761858744763,500.0,0.00042164,30]
[392722365,1761858745126,500.0,0.00042739,30]
[392722367,1761858754262,25000.0,0.0004867,2]
[392722368,1761858757047,-25000.0,0.0004867,2]
[392722369,1761858797192,1700.0,0.00048,2]
[392722370,1761858797283,-1087.32,0.0004866,10]
[392722371,1761858797316,-23912.68,0.0004867,2]
[392722372,1761858798923,-25000.0,0.0004866,4]
[392722373,1761858800025,-25000.0,0.0004866,4]
[392722374,1761858800925,-25000.0,0.0004866,4]
[392722375,1761858802204,-906.1,0.0004865,10]
[392722376,1761858802236,-24093.9,0.0004866,4]
[392722377,1761858803275,-25000.0,0.0004866,4]
[392722378,1761858804207,-25000.0,0.0004866,4]
[392722379,1761858804798,-25000.0,0.0004866,4]
[392722380,1761858806080,-25000.0,0.0004866,4]
[392722381,1761858807103,150.0,0.00040229,2]
[392722382,1761858807525,150.0,0.00043886,2]
[392722383,1761858807866,-25000.0,0.0004866,4]
[392722384,1761858807925,150.0,0.00047543,2]
[392722385,1761858973687,207.584443,0.00038609,2]
[392722387,1761858986172,631.36269655,0.0003526,15]
[392722388,1761859060907,200.0,0.00048,120]
[392722389,1761859105779,2000.0,0.00048,120]
[392722390,1761859137994,548.0,0.00048,120]
[392722391,1761859299350,900.0,0.00048,2]
[392722392,1761859319829,900.0,0.00048,2]
[392722393,1761859350848,490.0,0.00048,2]
[392722397,1761859628980,1000.0,0.00037096,30]
[392722400,1761859704466,14973.05286045,0.00035998,2]
[392722401,1761859704491,24550.0,0.00035998,2]
[392722402,1761859704515,25000.0,0.00035998,2]
[392722403,1761859704539,24850.0,0.00035998,2]
[392722404,1761859704562,25000.0,0.00035998,2]
[392722405,1761859704586,25000.0,0.00035998,2]
[392722406,1761859704612,24850.0,0.00035998,2]
[392722407,1761859704637,7609.96647241,0.00035998,2]
[392722409,1761859706194,1720.47839503,0.00024,2]
[392722411,1761859707895,1653.05995588,0.00026,30]
[392722412,1761859711047,164.23892824,0.00024,2]
[392722413,1761859712891,13852.25624844,0.0002465,2]
[392722414,1761859712913,25000.0,0.0002465,2]
[392722415,1761859712935,25000.0,0.0002465,2]
[392722416,1761859712958,25000.0,0.0002465,2]
[392722417,1761859712983,25000.0,0.0002465,2]
[392722418,1761859713007,25000.0,0.0002465,2]
[392722419,1761859713032,16727.88915198,0.0002465,2]
[392722420,1761859713064,509.88812589,0.0002465,2]
[392722421,1761859713092,461.47236479,0.00024,2]
[392722422,1761859714682,7300.75035734,0.00024142,2]
[392722423,1761859714706,25000.0,0.00024142,2]
[392722424,1761859714729,25000.0,0.00024142,2]
[392722425,1761859714753,25000.0,0.00024142,2]
[392722426,1761859714775,25000.0,0.00024142,2]
[392722427,1761859714798,25000.0,0.00024142,2]
[392722428,1761859714822,11595.07332766,0.00024142,2]
[392722429,1761859714846,25000.0,0.00024142,2]
[392722430,1761859714868,25000.0,0.00024142,2]
[392722431,1761859714892,25000.0,0.00024142,2]
[392722432,1761859714919,272736.07819941,0.00024142,2]
[392722433,1761859715276,629.24,0.00024132,10]
[392722434,1761859746078,223.3504993,0.00021178,2]
[392722435,1761859812404,506.69648869,0.00025205,2]
[392722436,1761859812426,9776.6595007,0.00025205,2]
[392722437,1761859812450,5284.08991741,0.00025205,2]
[392722453,1761859831933,-806.19976818,0.00036832,32]
[392722454,1761859831943,-35.61990219,0.0004856,2]
[392722455,1761859831954,-2779.96338088,0.0004856,2]
[392722456,1761859831964,-403.80339554,0.00048568,2]
[392722457,1761859831973,-29509.13478358,0.0004857,120]
[392722458,1761859831985,-847.999995,0.0004857,120]
[392722459,1761859831996,-734.8310695,0.0004857,120]
[392722460,1761859832008,-8281.26618399,0.0004857,120]
[392722461,1761859832063,-2428.12706074,0.0004857,120]
[392722496,1761859837871,-627.60601204,0.0004857,120]
[392722497,1761859837985,-2121.09982847,0.0004857,120]
[392722498,1761859837997,-2153.4,0.0004857,120]
[392722499,1761859838008,-39032.52557827,0.0004857,120]
[392722500,1761859838018,-376.28,0.0004864,10]
[392722501,1761859838027,-151.0,0.00048641,2]
[392722502,1761859838036,-151.0,0.00048641,2]
[392722503,1761859838046,-151.0,0.00048641,2]
[392722504,1761859838055,-151.0,0.00048641,2]
[392722505,1761859838065,-151.0,0.00048641,2]
[392722506,1761859838074,-151.0,0.00048641,2]
[392722507,1761859838084,-151.0,0.00048641,2]
[392722508,1761859838093,-151.0,0.00048641,2]
[392722509,1761859838103,-151.0,0.00048641,2]
[392722510,1761859838112,-151.0,0.00048641,2]
[392722511,1761859838121,-151.0,0.00048641,2]
[392722512,1761859838131,-151.0,0.00048641,2]
[392722513,1761859838140,-151.0,0.00048641,2]
[392722514,1761859838150,-151.0,0.00048641,2]
[392722515,1761859838159,-151.0,0.00048641,2]
[392722516,1761859838171,-151.0,0.00048641,2]
[392722517,1761859838181,-151.0,0.00048641,2]
[392722518,1761859838191,-151.0,0.00048641,2]
[392722519,1761859838200,-151.0,0.00048641,2]
[392722520,1761859838210,-151.0,0.00048641,2]
[392722521,1761859838219,-21094.2869579,0.0004865,4]
[392722522,1761859838229,-188.49428823,0.00048659,120]
[392722523,1761859838238,-263.07168845,0.00048659,31]
[392722524,1761859838248,-210942.869579,0.0004866,4]
[392722525,1761859838257,-286730.47190815,0.0004867,2]
[392722532,1761859840211,-22011.97872572,0.0004867,2]
[392722533,1761859840272,-553.74188,0.0004867,2]
[392722572,1761859846396,-587.5,0.0004866,10]
[392722573,1761859846405,-25215.84671654,0.0004867,2]
[392722578,1761859873344,242.49061382,0.00036832,120]
[392722602,1761860425944,153.0,0.00025206,2]
[392722637,1761860681020,10000.01,0.00025204,2]
[392722638,1761860681042,4166.30050296,0.00025204,2]
[392722639,1761860977804,499.0,0.00030222,2]
[392722645,1761861032183,-1020.73647482,0.00036846,10]
[392722647,1761861032192,-160.0,0.00038296,2]
[392722649,1761861032202,-357.29809335,0.00039065,2]
[392722654,1761861032239,-256.54523025,0.00039065,2]
[392722656,1761861032248,-1271.74748731,0.00039198,2]
[392722658,1761861032263,-575.54460539,0.00039198,2]
[392722661,1761861032275,-550.0,0.00041845,5]
[392722663,1761861032285,-174.0,0.00044549,5]
[392722665,1761861032294,-412.0,0.00047368,2]
[392722666,1761861032303,-19932.83566474,0.0004837,120]
[392722667,1761861032315,-62478.55623211,0.0004837,120]
[392722670,1761861038111,-150.0,0.00037977,2]
[392722671,1761861038121,-150.0,0.00041429,2]
[392722672,1761861038131,-150.0,0.00044882,2]
[392722673,1761861038141,-150.0,0.00048334,2]
[392722674,1761861038150,-500.0,0.00048369,120]
[392722675,1761861038159,-3324.59861474,0.0004837,120]
[392722676,1761861038169,-1877.05552206,0.00048374,2]
[392722677,1761861038178,-151.0,0.00048441,2]
[392722678,1761861038187,-151.0,0.00048441,2]
[392722679,1761861038196,-151.0,0.00048441,2]
[392722680,1761861038205,-151.0,0.00048441,2]
[392722681,1761861038214,-151.0,0.00048441,2]
[392722682,1761861038224,-151.0,0.00048441,2]
[392722684,1761861038233,-151.0,0.00048441,2]
[392722685,1761861038242,-151.0,0.00048441,2]
[392722686,1761861038252,-151.0,0.00048441,2]
[392722687,1761861038261,-151.0,0.00048441,2]
[392722689,1761861038271,-151.0,0.00048441,2]
[392722690,1761861038398,-151.0,0.00048441,2]
[392722691,1761861038408,-151.0,0.00048441,2]
[392722692,1761861038418,-151.0,0.00048441,2]
[392722693,1761861038428,-151.0,0.00048441,2]
[392722694,1761861038437,-151.0,0.00048441,2]
[392722695,1761861038447,-151.0,0.00048441,2]
[392722696,1761861038456,-151.0,0.00048441,2]
[392722697,1761861038466,-151.0,0.00048441,2]
[392722698,1761861038475,-151.0,0.00048441,2]
[392722699,1761861038485,-629.08,0.0004845,30]
[392722700,1761861038495,-9492.42913104,0.0004845,4]
[392722701,1761861038504,-184.15018191,0.00048459,31]
[392722702,1761861038514,-150.0,0.0004846,120]
[392722703,1761861038524,-57141.04890297,0.0004846,4]
[392722704,1761861038536,-75752.95893203,0.0004846,4]
[392722705,1761861038545,-54060.60918034,0.0004847,2]
[392722706,1761861038556,-464.58,0.0004847,2]
[392722707,1761861038567,-1144.48450276,0.0004847,2]
[392722708,1761861038578,-2214.34936157,0.0004847,2]
[392722709,1761861038589,-426.08,0.0004847,2]
[392722710,1761861038696,-489.58,0.0004845,10]
[392722711,1761861038705,-783.32675034,0.0004847,2]
[392722712,1761861038716,-1181.34538107,0.0004847,2]
[392722713,1761861038727,-504.32018305,0.0004847,2]
[392722714,1761861038739,-3388.57278782,0.0004847,2]
[392722715,1761861038750,-1448.41054981,0.0004847,2]
[392722731,1761861040350,-518.82147696,0.0004847,2]
[392722732,1761861040363,-1691.91914094,0.0004847,2]
[392722733,1761861040411,-441.17852304,0.0004847,2]
[392722734,1761861040422,-41201.08025719,0.0004847,2]
[392722735,1761861040471,-7399.07766806,0.0004847,2]
[392722742,1761861043316,-445.35026077,0.0004837,120]
[392722743,1761861043327,-978.47433028,0.0004837,120]
[392722744,1761861043339,-800.0,0.0004837,120]
[392722745,1761861043350,-5619.037764,0.0004837,120]
[392722746,1761861043362,-5706.06383417,0.0004837,120]
[392722747,1761861043373,-1094.99356746,0.0004837,120]
[392722748,1761861043384,-23876.24191168,0.0004837,120]
[392722749,1761861043395,-375.84981648,0.0004837,120]
[392722750,1761861043406,-268.36416503,0.0004837,120]
[392722751,1761861043439,-535.1,0.0004837,120]
[392722763,1761861046282,-259.33841475,0.00044216,30]
[392722764,1761861046350,-50.31490195,0.00044216,30]
[392722765,1761861046359,-4586.09814576,0.0004837,120]
[392722766,1761861046370,-17463.792962,0.0004837,120]
[392722767,1761861046409,-11248.02997135,0.0004837,120]
[392722768,1761861046420,-3560.0,0.0004837,120]
[392722769,1761861046469,-9178.59378261,0.0004837,120]
[392722770,1761861046478,-18056.86074948,0.0004847,2]
[392722771,1761861046489,-3801.3032776,0.0004847,2]
[392722772,1761861046500,-4480.38106715,0.0004847,2]
[392722777,1761861553153,167.463808,0.00013699,2]
[392722814,1761862232355,-305.57180953,0.00034147,2]
[392722821,1761862232417,-555.12602079,0.00034147,2]
[392722823,1761862232426,-167.463808,0.00034247,2]
[392722824,1761862232436,-150.0,0.00037669,2]
[392722826,1761862232446,-150.0,0.00041094,2]
[392722827,1761862232455,-292.875107,0.00041789,2]
[392722828,1761862232464,-752.06469159,0.00047979,2]
[392722829,1761862232476,-355.59869616,0.00047979,2]
[392722830,1761862232487,-927.47895716,0.00047979,2]
[392722831,1761862232496,-300.0,0.00048025,5]
[392722832,1761862232505,-1219.118,0.00048026,2]
[392722833,1761862232514,-5000.0,0.000482,120]
[392722834,1761862232523,-403.6515735,0.00048312,2]
[392722835,1761862232533,-1251.37034804,0.00048329,2]
[392722836,1761862232542,-8153.40812191,0.00048329,2]
[392722837,1761862232551,-151.0,0.00048341,2]
[392722838,1761862232561,-151.0,0.00048341,2]
[392722839,1761862232569,-151.0,0.00048341,2]
[392722840,1761862232579,-151.0,0.00048341,2]
[392722841,1761862232588,-151.0,0.00048341,2]
[392722842,1761862232598,-151.0,0.00048341,2]
[392722843,1761862232607,-151.0,0.00048341,2]
[392722844,1761862232615,-151.0,0.00048341,2]
[392722845,1761862232624,-151.0,0.00048341,2]
[392722846,1761862232633,-151.0,0.00048341,2]
[392722847,1761862232643,-151.0,0.00048341,2]
[392722848,1761862232652,-151.0,0.00048341,2]
[392722849,1761862232661,-151.0,0.00048341,2]
[392722850,1761862232670,-151.0,0.00048341,2]
[392722851,1761862232679,-151.0,0.00048341,2]
[392722852,1761862232688,-151.0,0.00048341,2]
[392722853,1761862232698,-151.0,0.00048341,2]
[392722854,1761862232707,-151.0,0.00048341,2]
[392722855,1761862232717,-151.0,0.00048341,2]
[392722856,1761862232726,-151.0,0.00048341,2]
[392722857,1761862232735,-500.0,0.0004836,120]
[392722858,1761862232745,-500.0,0.0004836,120]
[392722859,1761862232755,-500.0,0.0004836,120]
[392722860,1761862232764,-269.6213378,0.0004836,2]
[392722861,1761862232773,-407.99,0.0004836,10]
[392722862,1761862232783,-3961.48406028,0.0004836,4]
[392722882,1761862238344,-1032.76061343,0.0004836,4]
[392722889,1761862240720,-28229.25728449,0.0004836,4]
[392722890,1761862240729,-500.0,0.00048369,120]
[392722891,1761862240738,-500.0,0.00048369,120]
[392722892,1761862240748,-500.0,0.00048369,120]
[392722893,1761862240756,-500.0,0.00048369,120]
[392722894,1761862240765,-500.0,0.00048369,120]
[392722895,1761862240774,-500.0,0.00048369,120]
[392722896,1761862240783,-500.0,0.00048369,120]
[392722897,1761862240793,-500.0,0.00048369,120]
[392722898,1761862240920,-500.0,0.00048369,120]
[392722899,1761862240933,-500.0,0.00048369,120]
[392722900,1761862240942,-500.0,0.00048369,120]
[392722901,1761862240951,-484.03721893,0.00048369,120]
[392722902,1761862240960,-150.0,0.00048369,120]
[392722903,1761862240969,-189654.59359168,0.0004837,2]
[392722927,1761862243420,-339.99,0.0004836,10]
[392722928,1761862243430,-781.50049905,0.0004837,2]
[392722929,1761862243803,-892.70377426,0.0004837,2]
[392722935,1761862431630,-222.22222223,0.00029483,2]
[392722939,1761862728454,3222.68,0.00026,2]
[392722940,1761862751604,-222.22222222,0.00031035,30]
[392722941,1761862896648,-177.19119886,0.00033421,56]
[392722942,1761862900686,-45.03102337,0.00033421,56]
[392722943,1761862956471,-271.8300208,0.00027039,7]
[392722944,1761862961604,-250.56172218,0.00029579,7]
[392722947,1761863264898,-3177.18178191,0.0003599,2]
[392722948,1761863264986,-10000.01,0.0003599,2]
[392722949,1761863265126,-10000.01,0.0003599,2]
[392722950,1761863267593,-10000.01,0.0003599,2]
[392722951,1761863267899,-10000.01,0.0003599,2]
[392722952,1761863270643,-4687.88314363,0.0003599,2]
[392722953,1761863270667,-624.24371274,0.0003599,2]
[392722968,1761863301164,3850.3,0.00030137,120]
[392722970,1761863358052,-236.1,0.00036861,10]
[392722971,1761863358076,-243.97,0.00036861,10]
[392722972,1761863358100,-203.31,0.00036861,10]
[392722973,1761863358123,-169.43,0.00036861,10]
[392722974,1761863358147,-500.0,0.0003687,15]
[392722975,1761863358170,-500.0,0.0003687,15]
[392722976,1761863358193,-500.0,0.0003687,15]
[392722977,1761863358215,-500.0,0.0003687,15]
[392722978,1761863358240,-500.0,0.0003687,15]
[392722979,1761863358263,-500.0,0.0003687,2]
[392722980,1761863358287,-186.3167162,0.0003687,15]
[392722981,1761863358310,-500.0,0.0003687,15]
[392722982,1761863358334,-634.84643171,0.0003687,2]
[392722983,1761863358356,-641.27038897,0.0003687,15]
[392722984,1761863358379,-500.0,0.0003687,2]
[392722985,1761863358403,-500.0,0.0003687,15]
[392722986,1761863358427,-382.58369459,0.0003687,15]
[392722987,1761863358449,-500.0,0.0003687,15]
[392722988,1761863358474,-300.0,0.0003687,15]
[392722989,1761863358497,-500.0,0.0003687,15]
[392722990,1761863358521,-500.0,0.0003687,2]
[392722991,1761863358546,-500.0,0.0003687,2]
[392722992,1761863358574,-500.0,0.0003687,15]
[392722993,1761863358597,-500.0,0.0003687,15]
[392722994,1761863358623,-500.0,0.0003687,15]
[392722995,1761863358650,-500.0,0.0003687,15]
[392722996,1761863358680,-500.0,0.0003687,15]
[392722997,1761863358713,-500.0,0.0003687,2]
[392722998,1761863358755,-299.54446107,0.0003687,15]
[392722999,1761863358784,-500.0,0.0003687,2]
[392723000,1761863358816,-500.0,0.0003687,15]
[392723001,1761863358841,-306.10614728,0.0003687,15]
[392723002,1761863358865,-500.0,0.0003687,2]
[392723003,1761863358889,-500.0,0.0003687,2]
[392723004,1761863358916,-500.0,0.0003687,2]
[392723005,1761863359053,-500.0,0.0003687,2]
[392723006,1761863359080,-500.0,0.0003687,2]
[392723007,1761863359104,-500.0,0.0003687,2]
[392723008,1761863359133,-500.0,0.0003687,2]
[392723009,1761863359163,-500.0,0.0003687,2]
[392723010,1761863359188,-500.0,0.0003687,2]
[392723011,1761863359211,-179.13,0.000369,14]
[392723012,1761863359234,-4128.42,0.000369,14]
[392723013,1761863359270,847.15,0.00036861,10]
[392723016,1761863379316,332.23,0.00036861,10]
[392723017,1761863390122,276.86,0.00036861,10]
[392723018,1761863397283,-15000.0,0.00036871,20]
[392723019,1761863398042,-15000.0,0.00036871,20]
[392723020,1761863398953,-15000.0,0.00036871,20]
[392723021,1761863399617,-15000.0,0.00036871,20]
[392723022,1761863400436,-15000.0,0.00036871,20]
[392723023,1761863400918,230.72,0.00036861,10]
[392723024,1761863401158,300.0,0.0003687,3]
[392723025,1761863401230,-15000.0,0.00036871,20]
[392723026,1761863402045,400.0,0.0003687,2]
[392723027,1761863402196,300.0,0.0003687,3]
[392723028,1761863402237,-15000.0,0.00036871,20]
[392723029,1761863403049,-15000.0,0.00036871,20]
[392723030,1761863408520,-50000.0,0.00036871,20]
[392723031,1761863409455,-50000.0,0.00036871,20]
[392723032,1761863410957,-50000.0,0.00036871,20]
[392723033,1761863411488,-50000.0,0.00036871,20]
[392723034,1761863411839,192.26,0.00036861,10]
[392723035,1761863412324,-50000.0,0.00036871,20]
[392723036,1761863412876,-50000.0,0.00036871,20]
[392723037,1761863414758,500.0,0.00036873,3]
[392723038,1761863414823,692.24826342,0.00037421,3]
[392723039,1761863414920,500.06375083,0.00036873,5]
[392723040,1761863419941,500.0,0.00036873,5]
[392723041,1761863420257,500.0,0.00036873,5]
[392723042,1761863422660,160.22,0.00036861,10]
[392723078,1761863432534,-330.25242726,0.00036871,20]
[392723079,1761863432617,-442.88554272,0.00036871,20]
[392723080,1761863432628,-384044.88468541,0.00036871,20]
[392723081,1761863432704,-298.65390943,0.00036871,20]
[392723087,1761863433678,801.13,0.00036861,10]
[392723088,1761863436083,3248.71,0.000369,14]
[392723092,1761863438489,-1529.81688329,0.00036871,20]
[392723093,1761863438570,-40325.92515621,0.00036871,20]
[392723101,1761863440732,-1807.19034913,0.00036871,20]
[392723125,1761863443696,-3886.54647766,0.00036871,20]
[392723130,1761863446596,-5328.45457001,0.00036871,20]
[392723131,1761863446608,-115909.63022691,0.00036871,20]
[392723132,1761863446619,-1129.4,0.00036871,20]
[392723133,1761863446631,-494.293216,0.00036871,20]
[392723134,1761863446642,-830.6395,0.00036871,20]
[392723135,1761863446653,-596.13239745,0.00036871,20]
[392723136,1761863462481,400.0,0.0003687,2]
[392723137,1761863621656,-251.88734588,0.00031829,7]
[392723138,1761863624434,-173.01853443,0.00031829,7]
[392723139,1761863626052,-75.09411969,0.00031829,7]
[392723141,1761864146594,-278.91844281,0.0002983,7]
[392723142,1761864148160,-221.08155719,0.0002983,7]
[392723146,1761864222915,166.56717,0.00013699,2]
[392723150,1761864277111,150.0,0.0002589,2]
[392723151,1761864278165,-177.0,0.0002789,2]
[392723152,1761864278189,-204.0,0.0002989,2]
[392723167,1761864386592,-200.0,0.00032,120]
[392723168,1761864403893,722.6443553,0.00032,120]
[392723171,1761864416756,-225.3556447,0.00032,120]
[392723172,1761864462428,285.97604072,0.00025205,10]
[392723173,1761864462450,341.21193195,0.00025205,10]
[392723174,1761864462474,5999.75202733,0.00025205,10]
[392723175,1761864506376,156.14888959,0.00036866,60]
[392723176,1761864536648,-236.61254651,0.00031035,30]
[392723178,1761864590591,150.0,0.0002589,2]
[392723179,1761864591068,177.0,0.0002789,2]
[392723180,1761864591446,155.35703062,0.0002989,2]
[392723217,1761864631841,-302.52043825,0.00031886,7]
[392723221,1761864631877,-348.96969455,0.00031886,7]
[392723223,1761864631887,-200.0,0.00034,120]
[392723225,1761864631896,-377.25570894,0.00035742,2]
[392723227,1761864631905,-40.68987447,0.00035742,2]
[392723230,1761864631917,-229.94015947,0.00035742,2]
[392723232,1761864631926,-200.0,0.00036,120]
[392723234,1761864631935,-151.0,0.00036849,2]
[392723236,1761864631944,-151.0,0.00036849,2]
[392723238,1761864631953,-151.0,0.00036849,2]
[392723240,1761864631963,-151.0,0.00036849,2]
[392723242,1761864631972,-151.0,0.00036849,2]
[392723243,1761864631982,-151.0,0.00036849,2]
[392723244,1761864631991,-151.0,0.00036849,2]
[392723245,1761864632000,-151.0,0.00036849,2]
[392723246,1761864632009,-151.0,0.00036849,2]
[392723247,1761864632019,-151.0,0.00036849,2]
[392723248,1761864632028,-151.0,0.00036849,2]
[392723249,1761864632037,-151.0,0.00036849,2]
[392723250,1761864632046,-151.0,0.00036849,2]
[392723251,1761864632056,-151.0,0.00036849,2]
[392723253,1761864632065,-151.0,0.00036849,2]
[392723255,1761864632074,-151.0,0.00036849,2]
[392723257,1761864632083,-151.0,0.00036849,2]
[392723259,1761864632093,-151.0,0.00036849,2]
[392723261,1761864632102,-151.0,0.00036849,2]
[392723262,1761864632111,-151.0,0.00036849,2]
[392723263,1761864632120,-473.42,0.00036856,10]
[392723264,1761864632130,-394.52,0.00036856,10]
[392723265,1761864632139,-300.0,0.0003686,3]
[392723266,1761864632149,-400.0,0.0003686,2]
[392723267,1761864632158,-300.0,0.0003686,3]
[392723268,1761864632169,-314.54,0.00036861,3]
[392723269,1761864632178,-1103.0106508,0.00036864,2]
[392723270,1761864632187,-500.0,0.00036865,4]
[392723271,1761864632197,-500.0,0.00036865,4]
[392723272,1761864632206,-500.0,0.00036865,4]
[392723273,1761864632216,-500.0,0.00036865,4]
[392723274,1761864632225,-199.94938456,0.00036865,15]
[392723275,1761864632235,-500.0,0.00036865,2]
[392723276,1761864632245,-200.67846081,0.00036865,15]
[392723277,1761864632256,-298.47963513,0.00036865,15]
[392723278,1761864632269,-403.87182575,0.00036865,2]
[392723279,1761864632278,-152.55,0.00036865,46]
[392723280,1761864632288,-90837.32727754,0.00036866,20]
[392723283,1761864637588,-328.77,0.00036856,10]
[392723284,1761864637598,-4671.27050308,0.00036866,20]
[392723285,1761864637609,-302.0,0.00036866,20]
[392723286,1761864637622,-16095.97613246,0.00036866,20]
[392723287,1761864637656,-20926.7497939,0.00036866,20]
[392723288,1761864637666,-500.0,0.0003687,4]
[392723289,1761864637675,-422.40638099,0.0003687,4]
[392723290,1761864637685,-6865.5016674,0.00036871,2]
[392723291,1761864637695,-150.0,0.0003729,2]
[392723292,1761864637704,-200.0,0.00038,120]
[392723293,1761864637713,-166.56717,0.00038356,2]
[392723295,1761864637722,-200.0,0.00039446,5]
[392723296,1761864637732,-200.0,0.0004,120]
[392723297,1761864637741,-180.04257829,0.0004033,23]
[392723298,1761864637750,-150.0,0.0004068,2]
[392723299,1761864637759,-1153.67,0.00041261,15]